fUSD/lending_fUSD_20240426
["ID","MTS","AMOUNT","RATE_DAILY","PERIOD"]
[323663339,1714151450224,-500.0,0.00011578,2]
[323663341,1714151450233,-500.0,0.00011578,2]
[323663343,1714151450242,-1077.44,0.00011578,2]
[323663345,1714151450251,-502.08,0.00011578,2]
[323663347,1714151450260,-500.0,0.00011578,2]
[323663349,1714151450270,-500.0,0.00011578,2]
[323663351,1714151450279,-500.0,0.00011578,2]
[323663353,1714151450289,-500.0,0.00011578,2]
[323663355,1714151450298,-620.56,0.00011578,2]
[323663357,1714151450307,-500.0,0.00011578,2]
[323663359,1714151450316,-849.76,0.00011578,2]
[323663361,1714151450325,-577.47,0.00011578,2]
[323663363,1714151450334,-500.0,0.00011578,2]
[323663364,1714151450343,-1341.04,0.00011578,2]
[323663367,1714151450352,-6279.7069,0.00011613,2]
[323663368,1714151450362,-500.0,0.00011713,2]
[323663371,1714151450371,-500.0,0.00011713,2]
[323663373,1714151450381,-500.0,0.00011713,2]
[323663374,1714151450390,-500.0,0.00011713,2]
[323663376,1714151450400,-199.96,0.00011713,2]
[323663379,1714151450410,-500.0,0.00011713,2]
[323663380,1714151450419,-482.09,0.00011713,2]
[323663382,1714151450428,-500.0,0.00011713,2]
[323663385,1714151450438,-500.0,0.00011713,2]
[323663386,1714151450447,-500.0,0.00011713,2]
[323663389,1714151450456,-500.0,0.00011713,2]
[323663391,1714151450466,-500.0,0.00011713,2]
[323663392,1714151450476,-500.0,0.00011713,2]
[323663395,1714151450486,-500.0,0.00011713,2]
[323663396,1714151450495,-500.0,0.00011713,2]
[323663398,1714151450504,-500.0,0.00011713,2]
[323663400,1714151450513,-451.50045736,0.00011713,2]
[323663402,1714151450522,-500.0,0.00011713,2]
[323663404,1714151450531,-507.09,0.00011713,2]
[323663406,1714151450541,-500.0,0.00011713,2]
[323663408,1714151450550,-500.0,0.00011713,2]
[323663410,1714151450559,-500.0,0.00011713,2]
[323663413,1714151450569,-290.42025915,0.00011713,2]
[323663415,1714151450579,-500.0,0.00011713,2]
[323663417,1714151450588,-500.0,0.00011713,2]
[323663419,1714151450597,-634.42,0.00011713,2]
[323663420,1714151450607,-500.0,0.00011713,2]
[323663423,1714151450616,-500.0,0.00011713,2]
[323663424,1714151450626,-500.0,0.00011713,2]
[323663427,1714151450636,-531.68,0.00011713,2]
[323663428,1714151450646,-500.0,0.00011713,2]
[323663431,1714151450655,-500.0,0.00011713,2]
[323663433,1714151450666,-500.0,0.00011713,2]
[323663434,1714151450675,-500.0,0.00011713,2]
[323663436,1714151450685,-500.0,0.00011713,2]
[323663438,1714151450695,-500.0,0.00011713,2]
[323663441,1714151450706,-500.0,0.00011713,2]
[323663443,1714151450719,-500.0,0.00011713,2]
[323663445,1714151450733,-500.0,0.00011713,2]
[323663447,1714151450742,-247.7,0.00011713,2]
[323663449,1714151450753,-500.0,0.00011713,2]
[323663450,1714151450763,-590.89,0.00011713,2]
[323663453,1714151450773,-500.0,0.00011713,2]
[323663454,1714151450784,-500.0,0.00011713,2]
[323663457,1714151450794,-500.0,0.00011713,2]
[323663458,1714151450804,-599.58,0.00011713,2]
[323663461,1714151450814,-500.0,0.00011713,2]
[323663463,1714151450825,-500.0,0.00011713,2]
[323663464,1714151450836,-500.0,0.00011713,2]
[323663467,1714151450846,-1000.0,0.000118,4]
[323663468,1714151450857,-500.0,0.00011808,2]
[323663471,1714151450869,-500.0,0.00011809,2]
[323663472,1714151450879,-500.0,0.00011809,2]
[323663474,1714151450888,-550.62,0.00011809,2]
[323663476,1714151450898,-500.0,0.00011809,2]
[323663478,1714151450909,-500.0,0.00011809,2]
[323663481,1714151450919,-691.8,0.00011809,2]
[323663483,1714151450929,-500.0,0.00011809,2]
[323663485,1714151450942,-1110.69,0.00011809,2]
[323663487,1714151450953,-500.0,0.00011809,2]
[323663488,1714151450964,-1522.81,0.00011809,2]
[323663490,1714151450975,-1387.41,0.00011809,2]
[323663493,1714151450985,-500.0,0.00011809,2]
[323663495,1714151450994,-1527.96,0.00011809,2]
[323663496,1714151451004,-500.0,0.00011809,2]
[323663499,1714151451018,-500.0,0.00011809,2]
[323663500,1714151451028,-1133.09,0.00011809,2]
[323663502,1714151451037,-901.94,0.00011809,2]
[323663505,1714151451047,-587.0,0.00011809,2]
[323663507,1714151451057,-500.0,0.0001181,2]
[323663509,1714151451066,-1236.63,0.00011834,2]
[323663511,1714151451076,-988.87,0.00011834,2]
[323663513,1714151451086,-500.0,0.00011834,2]
[323663515,1714151451096,-1235.15,0.00011834,2]
[323663517,1714151451106,-3047.9,0.00011834,2]
[323663519,1714151451116,-1843.64,0.00011834,2]
[323663520,1714151451125,-707.95,0.00011834,2]
[323663522,1714151451135,-2127.85,0.00011834,2]
[323663524,1714151451145,-1311.62,0.00011834,2]
[323663527,1714151451154,-1506.79,0.00011834,2]
[323663529,1714151451164,-2085.01,0.00011834,2]
[323663531,1714151451173,-500.0,0.00011834,2]
[323663533,1714151451183,-932.1,0.00011834,2]
[323663535,1714151451192,-4003.61,0.00011834,2]
[323663537,1714151451201,-4772.25,0.00011834,2]
[323663538,1714151451210,-1930.08,0.00011834,2]
[323663540,1714151451220,-3025.99,0.00011834,2]
[323663542,1714151451230,-2157.8,0.00011834,2]
[323663545,1714151451240,-811.86,0.00011834,2]
[323663547,1714151451249,-1184.9,0.00011834,2]
[323663548,1714151451258,-981.6,0.00011834,2]
[323663550,1714151451268,-2388.61,0.00011834,2]
[323663552,1714151451277,-500.0,0.00011834,2]
[323663555,1714151451287,-1727.42,0.00011834,2]
[323663556,1714151451296,-964.21,0.00011834,2]
[323663559,1714151451305,-2658.19,0.00011834,2]
[323663560,1714151451316,-1079.37,0.00011834,2]
[323663561,1714151451326,-500.0,0.00011834,2]
[323663562,1714151451335,-500.0,0.00011834,2]
[323663563,1714151451345,-500.0,0.00011834,2]
[323663564,1714151451355,-2743.08,0.00011834,2]
[323663565,1714151451364,-500.0,0.00011834,2]
[323663566,1714151451374,-2292.92,0.00011834,2]
[323663567,1714151451383,-5041.92,0.00011834,2]
[323663568,1714151451393,-500.0,0.00011834,2]
[323663569,1714151451402,-3565.19,0.00011834,2]
[323663571,1714151451412,-500.0,0.00011834,2]
[323663573,1714151451421,-500.0,0.00011834,2]
[323663575,1714151451431,-500.0,0.00011834,2]
[323663578,1714151451441,-500.0,0.00011834,2]
[323663580,1714151451451,-2513.9,0.00011834,2]
[323663582,1714151451460,-500.0,0.00011835,2]
[323663584,1714151451469,-500.0,0.00011835,2]
[323663586,1714151451480,-1237.8,0.00011835,2]
[323663588,1714151451489,-500.0,0.00011835,2]
[323663590,1714151451498,-500.0,0.00011835,2]
[323663592,1714151451508,-643.55276729,0.00011835,2]
[323663594,1714151451518,-517.17,0.00011835,2]
[323663596,1714151451527,-500.0,0.00011835,2]
[323663598,1714151451536,-421.13655324,0.00011835,2]
[323663600,1714151451545,-1595.65,0.00011835,2]
[323663602,1714151451555,-551.26,0.00011835,2]
[323663604,1714151451564,-500.0,0.00011835,2]
[323663606,1714151451573,-653.0,0.00011835,2]
[323663608,1714151451582,-500.0,0.00011835,2]
[323663610,1714151451592,-500.0,0.00011835,2]
[323663612,1714151451601,-500.0,0.00011835,2]
[323663613,1714151451611,-993.13,0.00011835,2]
[323663615,1714151451620,-500.0,0.00011835,2]
[323663617,1714151451629,-1650.81,0.00011835,2]
[323663620,1714151451639,-1675.32,0.00011835,2]
[323663622,1714151451649,-500.0,0.00011835,2]
[323663624,1714151451658,-500.0,0.00011835,2]
[323663626,1714151451667,-500.0,0.00011835,2]
[323663628,1714151451677,-605.08,0.00011835,2]
[323663630,1714151451686,-1825.49,0.00011835,2]
[323663632,1714151451696,-500.0,0.00011835,2]
[323663634,1714151451705,-500.0,0.00011835,2]
[323663636,1714151451714,-640.69,0.00011835,2]
[323663638,1714151451723,-500.0,0.00011835,2]
[323663640,1714151451733,-500.0,0.00011835,2]
[323663642,1714151451742,-689.79,0.00011835,2]
[323663644,1714151451751,-386.79,0.00011835,2]
[323663646,1714151451760,-500.0,0.00011835,2]
[323663648,1714151451768,-500.0,0.00011835,2]
[323663649,1714151451777,-547.76518986,0.00011835,2]
[323663651,1714151451787,-626.78,0.00011835,2]
[323663653,1714151451796,-500.0,0.00011835,2]
[323663655,1714151451805,-727.96,0.00011835,2]
[323663657,1714151451814,-500.0,0.00011835,2]
[323663660,1714151451823,-500.0,0.00011835,2]
[323663662,1714151451832,-586.56,0.00011835,2]
[323663663,1714151451841,-567.26,0.00011835,2]
[323663665,1714151451850,-658.81,0.00011835,2]
[323663667,1714151451859,-500.0,0.00011835,2]
[323663670,1714151451868,-500.0,0.00011835,2]
[323663672,1714151451878,-500.0,0.00011835,2]
[323663674,1714151451887,-500.0,0.00011835,2]
[323663675,1714151451896,-2096.55,0.00011835,2]
[323663677,1714151451905,-500.0,0.00011835,2]
[323663680,1714151451914,-660.54,0.00011835,2]
[323663682,1714151451925,-1713.61,0.00011835,2]
[323663684,1714151451934,-1168.69,0.00011835,2]
[323663686,1714151451942,-500.0,0.00011835,2]
[323663687,1714151451951,-9507.7,0.00011835,2]
[323663689,1714151451960,-500.0,0.00011835,2]
[323663692,1714151451969,-662.79,0.00011835,2]
[323663693,1714151451979,-505.32,0.00011835,2]
[323663695,1714151451988,-1136.1,0.00011835,2]
[323663697,1714151451996,-500.0,0.00011835,2]
[323663700,1714151452006,-664.71,0.00011835,2]
[323663702,1714151452019,-3668.56,0.00011835,2]
[323663703,1714151452028,-3129.77,0.00011835,2]
[323663705,1714151452037,-500.0,0.00011835,2]
[323663707,1714151452046,-1658.06,0.00011835,2]
[323663709,1714151452057,-6601.57,0.00011835,2]
[323663712,1714151452066,-500.0,0.00011835,2]
[323663714,1714151452076,-8618.17,0.00011835,2]
[323663715,1714151452089,-500.0,0.00011835,2]
[323663718,1714151452099,-1052.64,0.00011835,2]
[323663719,1714151452108,-2744.18,0.00011835,2]
[323663722,1714151452119,-1813.16,0.00011835,2]
[323663723,1714151452128,-500.0,0.00011835,2]
[323663726,1714151452137,-1562.11,0.00011835,2]
[323663728,1714151452147,-1924.96,0.00011835,2]
[323663730,1714151452155,-1536.97,0.00011835,2]
[323663732,1714151452164,-1240.32,0.00011835,2]
[323663733,1714151452173,-3849.75,0.00011835,2]
[323663735,1714151452182,-500.0,0.00011835,2]
[323663737,1714151452191,-3065.16,0.00011835,2]
[323663739,1714151452200,-5407.27,0.00011835,2]
[323663742,1714151452209,-500.0,0.00011835,2]
[323663743,1714151452218,-500.0,0.00011835,2]
[323663746,1714151452229,-590.75,0.00011835,2]
[323663747,1714151452238,-500.0,0.00011835,2]
[323663749,1714151452247,-7048.43,0.00011835,2]
[323663751,1714151452256,-500.0,0.00011835,2]
[323663753,1714151452266,-1956.15,0.00011835,2]
[323663756,1714151452276,-4098.93,0.00011835,2]
[323663758,1714151452285,-1557.71,0.00011835,2]
[323663759,1714151452296,-1556.15,0.00011835,2]
[323663761,1714151452306,-2225.27,0.00011835,2]
[323663763,1714151452315,-802.71,0.00011835,2]
[323663766,1714151452324,-500.0,0.00011835,2]
[323663768,1714151452334,-1132.16,0.00011835,2]
[323663769,1714151452343,-1079.18,0.00011835,2]
[323663771,1714151452353,-623.22,0.00011835,2]
[323663773,1714151452362,-3443.09,0.00011835,2]
[323663775,1714151452371,-2782.76,0.00011835,2]
[323663777,1714151452381,-500.0,0.00011835,2]
[323663779,1714151452391,-500.0,0.00011835,2]
[323663781,1714151452400,-8661.4,0.00011835,2]
[323663783,1714151452411,-500.0,0.00011835,2]
[323663785,1714151452420,-636.13,0.00011835,2]
[323663788,1714151452430,-500.0,0.00011835,2]
[323663789,1714151452440,-500.0,0.00011835,2]
[323663792,1714151452451,-5049.04,0.00011835,2]
[323663794,1714151452461,-500.0,0.00011835,2]
[323663796,1714151452471,-14670.52,0.00011835,2]
[323663798,1714151452481,-1993.01,0.00011835,2]
[323663799,1714151452491,-2395.87,0.00011835,2]
[323663801,1714151452502,-500.0,0.00011835,2]
[323663804,1714151452512,-4196.83,0.00011835,2]
[323663806,1714151452524,-500.0,0.00011835,2]
[323663808,1714151452534,-1095.0,0.00011835,2]
[323663809,1714151452543,-670.82,0.00011835,2]
[323663812,1714151452554,-1152.84,0.00011835,2]
[323663814,1714151452563,-4023.5,0.00011835,2]
[323663815,1714151452573,-4876.99,0.00011835,2]
[323663818,1714151452583,-2364.3,0.00011835,2]
[323663819,1714151452593,-885.65,0.00011835,2]
[323663822,1714151452606,-500.0,0.00011835,2]
[323663824,1714151452616,-1389.65,0.00011835,2]
[323663826,1714151452627,-1798.93,0.00011835,2]
[323663827,1714151452636,-645.75,0.00011835,2]
[323663829,1714151452645,-680.25,0.00011835,2]
[323663832,1714151452657,-500.0,0.00011835,2]
[323663833,1714151452666,-934.79,0.00011835,2]
[323663836,1714151452676,-500.0,0.00011835,2]
[323663837,1714151452686,-295.54,0.00011835,2]
[323663840,1714151452698,-1820.94,0.00011835,2]
[323663841,1714151452710,-1868.12,0.00011835,2]
[323663844,1714151452720,-500.0,0.00011835,2]
[323663846,1714151452732,-500.0,0.00011835,2]
[323663848,1714151452742,-1369.92,0.00011835,2]
[323663849,1714151452752,-875.0,0.00011835,2]
[323663851,1714151452764,-2640.05,0.00011835,2]
[323663854,1714151452776,-1910.12,0.00011835,2]
[323663855,1714151452787,-500.0,0.00011835,2]
[323663857,1714151452799,-500.0,0.00011835,2]
[323663859,1714151452808,-594.25417291,0.00011835,2]
[323663862,1714151452818,-1127.58,0.00011835,2]
[323663863,1714151452829,-540.7,0.00011835,2]
[323663865,1714151452839,-500.0,0.00011835,2]
[323663868,1714151452849,-500.0,0.00011835,2]
[323663869,1714151452860,-6360.34,0.00011835,2]
[323663872,1714151452872,-500.0,0.00011835,2]
[323663873,1714151452883,-4505.41,0.00011835,2]
[323663875,1714151452893,-1576.88,0.00011835,2]
[323663877,1714151452903,-1518.8,0.00011835,2]
[323663879,1714151452914,-444.24778096,0.00011835,2]
[323663882,1714151452925,-4342.29,0.00011835,2]
[323663883,1714151452936,-6439.66,0.00011835,2]
[323663885,1714151452945,-864.32,0.00011835,2]
[323663887,1714151452956,-3803.48,0.00011835,2]
[323663889,1714151452965,-500.0,0.00011835,2]
[323663891,1714151452976,-500.0,0.00011835,2]
[323663893,1714151452986,-9175.58,0.00011835,2]
[323663895,1714151452995,-500.0,0.00011852,2]
[323663897,1714151453006,-500.0,0.00011852,2]
[323663899,1714151453018,-500.0,0.00011852,2]
[323663901,1714151453029,-306.23191483,0.00011852,2]
[323663903,1714151453039,-500.0,0.00011852,2]
[323663905,1714151453049,-658.36,0.00011852,2]
[323663907,1714151453059,-523.58,0.00011852,2]
[323663910,1714151453070,-500.0,0.00011852,2]
[323663912,1714151453080,-813.29,0.00011852,2]
[323663913,1714151453092,-157.94,0.00011852,2]
[323663915,1714151453102,-500.0,0.00011852,2]
[323663918,1714151453113,-756.94,0.00011852,2]
[323663920,1714151453124,-752.56,0.00011852,2]
[323663922,1714151453134,-500.0,0.00011852,2]
[323663923,1714151453143,-699.65,0.00011852,2]
[323663924,1714151453153,-500.0,0.00011852,2]
[323663925,1714151453163,-554.32,0.00011852,2]
[323663926,1714151453172,-1480.24,0.00011852,2]
[323663927,1714151453183,-500.0,0.00011852,2]
[323663928,1714151453193,-500.0,0.00011852,2]
[323663929,1714151453204,-500.0,0.00011852,2]
[323663930,1714151453213,-500.0,0.00011852,2]
[323663931,1714151453223,-901.02,0.00011852,2]
[323663933,1714151453234,-500.0,0.00011852,2]
[323663935,1714151453244,-777.34,0.00011852,2]
[323663937,1714151453256,-718.69,0.00011852,2]
[323663939,1714151453266,-500.0,0.00011852,2]
[323663941,1714151453275,-1647.51,0.00011852,2]
[323663943,1714151453285,-500.0,0.00011852,2]
[323663945,1714151453295,-823.53,0.00011852,2]
[323663947,1714151453304,-500.0,0.00011852,2]
[323663949,1714151453315,-1121.33,0.00011852,2]
[323663951,1714151453325,-1146.69,0.00011852,2]
[323663953,1714151453334,-500.0,0.00011852,2]
[323663955,1714151453343,-992.14,0.00011852,2]
[323663957,1714151453354,-500.0,0.00011852,2]
[323663959,1714151453365,-867.84,0.00011852,2]
[323663961,1714151453375,-500.0,0.00011852,2]
[323663963,1714151453384,-540.36,0.00011852,2]
[323663965,1714151453394,-1324.49,0.00011852,2]
[323663967,1714151453404,-1035.88,0.00011852,2]
[323663969,1714151453413,-1360.39,0.00011852,2]
[323663971,1714151453422,-500.0,0.00011852,2]
[323663973,1714151453432,-500.0,0.00011852,2]
[323663975,1714151453442,-500.0,0.00011852,2]
[323663977,1714151453451,-500.0,0.00011852,2]
[323663979,1714151453461,-602.01691803,0.00011852,2]
[323663981,1714151453470,-894.04,0.00011852,2]
[323663983,1714151453481,-500.0,0.00011852,2]
[323663985,1714151453490,-500.0,0.00011852,2]
[323663987,1714151453500,-543.43,0.00011852,2]
[323663989,1714151453509,-500.0,0.00011852,2]
[323663991,1714151453519,-500.0,0.00011852,2]
[323663993,1714151453529,-1077.44,0.00011852,2]
[323663995,1714151453539,-502.08,0.00011852,2]
[323663997,1714151453549,-500.0,0.00011852,2]
[323663999,1714151453559,-500.0,0.00011852,2]
[323664001,1714151453568,-500.0,0.00011852,2]
[323664003,1714151453577,-620.56,0.00011852,2]
[323664005,1714151453587,-500.0,0.00011852,2]
[323664007,1714151453597,-849.76,0.00011852,2]
[323664009,1714151453607,-577.47,0.00011852,2]
[323664011,1714151453616,-500.0,0.00011852,2]
[323664013,1714151453626,-1341.04,0.00011852,2]
[323664015,1714151453635,-504.0,0.00011872,2]
[323664017,1714151453644,-314004.67200738,0.000119,2]
[323664072,1714151454186,-1702.82391213,0.000119,2]
[323664074,1714151454199,-852.84092918,0.000119,2]
[323664076,1714151454213,-95797.10170426,0.000119,2]
[323666477,1714151857780,-1608.97922625,8.626e-05,2]
[323666478,1714151857802,-155.0,8.627e-05,2]
[323666479,1714151857826,-1242.41167652,8.627e-05,2]
[323666480,1714151857847,-166.04,8.628e-05,2]
[323666481,1714151857868,-150.0,9e-05,2]
[323666482,1714151857890,-546.63,9.121e-05,2]
[323666483,1714151857911,-130.93909723,0.0001,2]
[323666484,1714151858338,-19.06090277,0.0001,2]
[323666485,1714151858358,-162.24677362,0.0001,2]
[323666486,1714151858377,-323.96171403,0.0001,2]
[323666487,1714151858399,-159.36,0.00010456,2]
[323666488,1714151858419,-180.43,0.00010671,2]
[323666489,1714151858440,-180.43,0.00010698,2]
[323666490,1714151858461,-180.43,0.00010724,2]
[323666491,1714151858481,-500.0,0.00010783,2]
[323666492,1714151858502,-2294.08060958,0.00010784,2]
[323666493,1714151858710,-1074.34939042,0.00010784,2]
[323666494,1714151950255,399.39145558,0.00010784,2]
[323666495,1714151966262,399.39145558,0.00010784,2]
[323666496,1714151984256,399.39145558,0.00010784,2]
[323666497,1714151985117,1727.47624284,0.00010759,2]
[323666498,1714151985138,4000.0,0.00010759,2]
[323666499,1714151985158,159.00747879,0.00010759,2]
[323666500,1714151997319,201.6,0.00010767,2]
[323666501,1714152000016,563.4,8.849e-05,2]
[323666502,1714152000267,249.91601111,0.00010784,2]
[323666507,1714152108856,2245.28,0.0001062,2]
[323666508,1714152141319,580.7965101,0.0001,2]
[323666509,1714152141341,1419.2034899,0.0001,2]
[323666513,1714152300608,166.04,8.45e-05,2]
[323666514,1714152327477,208.51,0.00010606,2]
[323666515,1714152384455,250.0,0.00010564,2]
[323666516,1714152432389,1956.2465101,0.00010609,2]
[323666517,1714152432412,4000.0,0.00010609,2]
[323666518,1714152432434,4000.0,0.00010609,2]
[323666519,1714152432457,4000.0,0.00010609,2]
[323666533,1714152631476,-155.0,8.634e-05,2]
[323666534,1714152631486,-1608.97922625,8.634e-05,2]
[323666535,1714152631496,-150.0,8.635e-05,2]
[323666536,1714152631505,-1242.41167652,8.635e-05,2]
[323666537,1714152631514,-3048.64892457,8.636e-05,2]
[323666538,1714152631533,-786.578595,8.636e-05,2]
[323666567,1714152637568,-8158.31708619,8.636e-05,2]
[323666568,1714152637581,-535.23,8.638e-05,2]
[323666570,1714152637593,-340.38298238,0.00010326,2]
[323666576,1714152637795,-1156.13701762,0.00010326,2]
[323666577,1714152637805,-632.64,0.00010525,2]
[323666578,1714152637816,-9943.7534899,0.00010609,2]
[323666579,1714152637826,-200.0,0.000108,3]
[323666580,1714152637836,-500.0,0.000109,3]
[323666581,1714152637848,-535.23,0.00010902,2]
[323666582,1714152637857,-662.0,0.00010933,2]
[323666583,1714152637868,-2000.0,0.00010959,3]
[323666584,1714152637878,-150.0,0.00011,2]
[323666585,1714152637889,-2750.0,0.00011,3]
[323666586,1714152637900,-1930.5,0.00011,2]
[323666587,1714152637911,-565.74,0.00011157,2]
[323666588,1714152637921,-390.5365,0.00011185,2]
[323666589,1714152637934,-10000.0,0.00011186,2]
[323666590,1714152637946,-4583.44785109,0.00011273,2]
[323666591,1714152637956,-210.24604904,0.00011274,2]
[323666592,1714152637966,-500.0,0.00011283,2]
[323666593,1714152637976,-500.0,0.00011283,2]
[323666594,1714152637988,-224.33588216,0.00011283,2]
[323666595,1714152637998,-500.0,0.00011283,2]
[323666596,1714152638009,-500.0,0.00011283,2]
[323666597,1714152638019,-500.0,0.00011283,2]
[323666598,1714152638029,-500.0,0.00011283,2]
[323666599,1714152638038,-500.0,0.00011283,2]
[323666600,1714152638049,-500.0,0.00011283,2]
[323666601,1714152638058,-1189.69,0.00011283,2]
[323666602,1714152638067,-500.0,0.00011283,2]
[323666603,1714152638077,-323.85732799,0.00011284,2]
[323666604,1714152638086,-538.32384601,0.00011284,2]
[323666605,1714152638095,-290.91176577,0.00011284,2]
[323666606,1714152638105,-427.91653768,0.00011284,2]
[323666607,1714152638115,-155.01653684,0.00011284,2]
[323666608,1714152638124,-155.0,0.00011284,2]
[323666609,1714152638135,-487.39575112,0.00011284,2]
[323666610,1714152638144,-157.23443646,0.00011284,2]
[323666611,1714152638153,-1082.25647204,0.00011284,2]
[323666612,1714152638163,-2321.74176097,0.00011284,2]
[323666613,1714152638172,-155.0,0.00011284,2]
[323666614,1714152638184,-444.46701666,0.00011284,2]
[323666615,1714152638194,-1994.63391406,0.00011284,2]
[323666616,1714152638203,-155.0,0.00011284,2]
[323666617,1714152638212,-1351.45342977,0.00011284,2]
[323666618,1714152638222,-408.40214741,0.00011284,2]
[323666619,1714152638231,-236.4795796,0.00011284,2]
[323666620,1714152638240,-194.36220808,0.00011284,2]
[323666621,1714152638250,-233.74288174,0.00011284,2]
[323666622,1714152638259,-4332.58774671,0.00011284,2]
[323666623,1714152638269,-1244.26931048,0.00011284,2]
[323666624,1714152638278,-305.46425129,0.00011284,2]
[323666625,1714152638288,-705.82181173,0.00011284,2]
[323666626,1714152638298,-4322.85909605,0.00011284,2]
[323666627,1714152638307,-363.03433536,0.00011284,2]
[323666628,1714152638317,-508994.67578071,0.00011284,2]
[323666629,1714152638326,-865.26,0.00011284,2]
[323666630,1714152638336,-1138.35,0.00011284,2]
[323666631,1714152638346,-652.33,0.00011284,2]
[323666632,1714152638356,-1696.19,0.00011284,2]
[323666633,1714152638366,-1205.76,0.00011284,2]
[323666634,1714152638376,-1433.13,0.00011284,2]
[323666635,1714152638386,-500.0,0.00011284,2]
[323666636,1714152638396,-500.0,0.00011284,2]
[323666637,1714152638405,-1915.91,0.00011284,2]
[323666638,1714152638420,-876.69,0.00011284,2]
[323666639,1714152638430,-700.95,0.00011284,2]
[323666640,1714152638441,-4532.28,0.00011284,2]
[323666641,1714152638451,-1828.22,0.00011284,2]
[323666642,1714152638463,-2775.78,0.00011284,2]
[323666643,1714152638473,-2071.78,0.00011284,2]
[323666644,1714152638482,-902.32,0.00011284,2]
[323666645,1714152638492,-1976.48,0.00011284,2]
[323666646,1714152638502,-2203.21,0.00011284,2]
[323666647,1714152638511,-915.56,0.00011284,2]
[323666648,1714152638521,-500.0,0.00011284,2]
[323666649,1714152638530,-888.95,0.00011284,2]
[323666650,1714152638540,-2442.62,0.00011284,2]
[323666651,1714152638549,-678.9,0.00011284,2]
[323666652,1714152638560,-500.0,0.00011284,2]
[323666653,1714152638569,-4639.13,0.00011284,2]
[323666654,1714152638579,-2127.04,0.00011284,2]
[323666655,1714152638589,-500.0,0.00011284,2]
[323666656,1714152638598,-3260.45,0.00011284,2]
[323666657,1714152638608,-500.0,0.00011284,2]
[323666658,1714152638617,-2317.34,0.00011284,2]
[323666659,1714152638627,-185.07318544,0.00011285,2]
[323666660,1714152638637,-2937.04091234,0.00011285,2]
[323666661,1714152638647,-500.0,0.00011285,2]
[323666662,1714152638657,-500.0,0.00011285,2]
[323666663,1714152638667,-500.96,0.00011285,2]
[323666664,1714152638676,-500.0,0.00011285,2]
[323666665,1714152638688,-500.0,0.00011285,2]
[323666666,1714152638697,-703.5,0.00011285,2]
[323666667,1714152638706,-500.0,0.00011285,2]
[323666668,1714152638716,-1137.54,0.00011285,2]
[323666669,1714152638725,-500.0,0.00011285,2]
[323666670,1714152638735,-500.0,0.00011285,2]
[323666671,1714152638744,-500.0,0.00011285,2]
[323666672,1714152638754,-500.0,0.00011285,2]
[323666673,1714152638763,-500.0,0.00011285,2]
[323666674,1714152638772,-500.0,0.00011285,2]
[323666675,1714152638782,-504.42039534,0.00011285,2]
[323666676,1714152638792,-500.0,0.00011285,2]
[323666677,1714152638802,-554.82232512,0.00011285,2]
[323666678,1714152638812,-1500.72,0.00011285,2]